bitfinex/quotes_ETHUSD_20220310
["timestamp","ask_amount","ask_price","bid_price","bid_amount"]
[1646920808746,0.97039,2577.4,2577.1,0.45460692]
[1646920809189,0.97039,2577.4,2576.7,1.94105]
[1646920809190,0.04622763,2577.3,2576.4,0.58541475]
[1646920809391,0.04622763,2577.3,2577.0,0.69124677]
[1646920809392,1.9417,2577.3,2577.0,0.69124677]
[1646920809589,0.04582148,2577.1,2577.0,0.69124677]
[1646920809791,0.04582148,2577.1,2576.9,0.0015236]
[1646920809997,0.194,2577.0,2576.9,0.0015236]
[1646920810189,25.5,2577.0,2576.4,0.03741885]
[1646920810391,0.05339824,2576.9,2576.4,0.03741885]
[1646920810591,1.01994585,2576.7,2576.4,0.03741885]
[1646920810791,11.04422131,2576.6,2576.4,0.01237289]
[1646920810991,0.04761244,2576.5,2576.4,0.01237289]
[1646920811392,0.04761244,2576.5,2576.2,1.0]
[1646920811592,13.94205,2576.6,2576.2,1.0]
[1646920811792,13.94205,2576.6,2576.0,1.11883116]
[1646920811793,14.24205,2576.6,2576.0,1.11883116]
[1646920811991,0.97095,2576.5,2576.0,1.11883116]
[1646920812191,0.90576129,2576.3,2576.0,1.11883116]
[1646920812391,0.90576129,2576.3,2575.7,0.461]
[1646920813053,1.87675129,2576.3,2575.8,0.97097]
[1646920813446,0.99621214,2575.9,2575.8,0.97097]
[1646920813849,0.99621214,2575.9,2575.3,0.20009816]
[1646920814048,0.99621214,2575.9,2575.3,0.00609816]
[1646920814347,0.99621214,2575.9,2575.6,0.69124677]
[1646920814348,1.96746214,2575.9,2575.6,0.69124677]
[1646920814750,0.384,2575.7,2575.1,1.94223]
[1646920814950,0.384,2575.7,2575.0,0.0031]
[1646920814951,0.05332878,2575.4,2575.0,0.0031]
[1646920815750,12.70147,2575.4,2575.3,3.446e-05]
[1646920815951,12.89547,2575.4,2575.3,3.446e-05]
[1646920816149,13.19547,2575.4,2575.3,3.446e-05]
[1646920816348,13.19547,2575.4,2575.0,0.0031]
[1646920816349,11.73,2575.2,2575.0,0.0031]
[1646920816792,12.73,2575.2,2575.0,0.0031]
[1646920816991,12.73,2575.2,2575.1,0.00643361]
[1646920817190,13.74446236,2575.2,2575.1,0.00643361]
[1646920817590,12.924,2575.2,2575.1,0.00643361]
[1646920817802,12.924,2575.2,2575.0,0.0031]
[1646920817997,1.0,2575.2,2575.0,0.0031]
[1646920818396,3.62714,2575.3,2575.0,0.0031]
[1646920818897,0.99276219,2575.2,2575.0,0.0031]
[1646920819097,0.99276219,2575.2,2574.1,2.40381]
[1646920819098,12.114,2575.1,2574.1,0.194]
[1646920819295,0.194,2575.0,2574.0,0.58754675]
[1646920819698,51.384,2574.9,2574.0,0.58754675]
[1646920819898,3.0,2574.8,2574.0,0.5]
[1646920820097,13.08572,2574.7,2574.0,0.5]
[1646920820347,13.08572,2574.7,2573.6,4.80453464]
[1646920820348,14.57992,2574.7,2573.6,4.80453464]
[1646920820542,14.57992,2574.7,2573.6,1.30453464]
[1646920820943,0.384,2574.6,2574.2,0.00193964]
[1646920821143,1.39451241,2574.6,2574.2,0.00193964]
[1646920821346,14.09640241,2574.6,2574.2,0.00193964]
[1646920821549,14.39640241,2574.6,2574.2,0.00193964]
[1646920821744,3.0,2574.4,2574.2,3.964e-05]
[1646920821950,3.0,2574.4,2573.1,2.5988]
[1646920821951,0.384,2574.2,2573.1,2.5988]
[1646920822146,11.73,2574.0,2573.9,6.257e-05]
[1646920822350,0.384,2573.7,2573.2,0.04206333]
[1646920822554,0.384,2573.7,2572.5,0.22527579]
[1646920822555,12.114,2573.4,2572.5,0.06996779]
[1646920822748,12.114,2573.4,2572.2,0.19393037]
[1646920822749,1.9449,2573.3,2572.2,0.19393037]
[1646920822957,0.384,2573.2,2572.2,0.19393037]
[1646920823152,0.384,2573.2,2572.2,0.38823037]
[1646920823352,0.93547506,2572.5,2572.2,0.38823037]
[1646920823552,1.1664,2572.5,2572.2,0.38823037]
[1646920823753,1.1664,2572.5,2572.2,0.07241646]
[1646920824602,2.1389,2572.5,2572.2,0.07241646]
[1646920824802,0.9725,2572.5,2572.2,0.07241646]
[1646920825003,0.9725,2572.5,2572.1,0.5]
[1646920825804,0.9725,2572.5,2572.0,0.0574829]
[1646920825805,0.9725,2572.5,2572.2,0.00190661]
[1646920826203,0.91472656,2572.3,2572.2,0.00190661]
[1646920826602,0.91472656,2572.3,2572.0,0.0574829]
[1646920826603,1.88723656,2572.3,2572.0,0.0574829]
[1646920827002,1.88723656,2572.3,2572.1,0.00190668]
[1646920827404,0.97251,2572.3,2572.1,0.00190668]
[1646920827604,1.94467,2572.8,2572.1,0.00190668]
[1646920827847,0.11284899,2572.9,2572.0,0.59911986]
[1646920827848,0.11284899,2572.9,2572.2,0.461]
[1646920828051,0.11284899,2572.9,2572.0,0.2517829]
[1646920828052,0.11284899,2572.9,2572.3,0.461]
[1646920828254,1.5807,2573.7,2572.7,3.0]
[1646920828255,0.0449094,2573.5,2572.7,3.0]
[1646920828450,0.0449094,2573.5,2572.9,0.97172]
[1646920828651,0.0449094,2573.5,2573.4,0.9718]
[1646920828847,0.0449094,2573.5,2573.4,1.81173425]
[1646920828848,9.4e-06,2573.5,2573.4,1.81173425]
[1646920829046,9.4e-06,2573.5,2573.4,1.927]
[1646920829948,9.4e-06,2573.5,2573.4,2.0742]
[1646920830150,1.88e-05,2573.8,2573.7,0.97148]
[1646920830349,0.11284899,2574.1,2573.4,3.49393037]
[1646920830350,0.69137,2573.5,2573.4,3.49393037]
[1646920830549,0.11284899,2574.1,2573.5,106.6913]
[1646920830755,0.11284899,2574.1,2573.7,5.95293037]
[1646920830949,0.11284899,2574.1,2573.8,1.47011077]
[1646920831150,0.0449094,2574.4,2573.9,2.9140521]
[1646920831351,0.0449094,2574.4,2574.0,0.461]
[1646920831591,0.11284899,2575.0,2574.0,0.461]
[1646920831592,0.11284899,2575.0,2574.0,0.65493037]
[1646920831793,0.11284899,2575.0,2574.2,5.759]
[1646920831992,0.11284899,2575.0,2574.3,0.461]
[1646920832192,0.11284899,2575.0,2574.9,1.14197489]
[1646920832391,0.11284899,2575.0,2574.9,2.57415489]
[1646920832795,0.11284899,2575.0,2574.9,1.60297489]
[1646920835438,0.11284899,2575.0,2574.9,0.461]
[1646920835844,0.72242536,2574.7,2574.6,0.97137]
[1646920836043,0.72242536,2574.7,2574.5,0.5]
[1646920836440,1.65078624,2574.7,2574.5,0.5]
[1646920836645,2.62230624,2574.7,2574.5,0.961]
[1646920837042,2.62230624,2574.7,2574.5,0.461]
[1646920837242,1.69394536,2574.7,2574.5,0.461]
[1646920837849,0.72242536,2574.7,2574.5,0.461]
[1646920838049,0.72242536,2574.7,2574.6,0.384]
[1646920838249,0.72242536,2574.7,2574.6,1.8268507]
[1646920838651,0.72242536,2574.7,2574.6,1.4428507]
[1646920839098,0.72242536,2574.7,2574.6,1.52449354]
[1646920839698,0.72242536,2574.7,2574.6,1.90849354]
[1646920839898,0.72242536,2574.7,2574.6,2.1268507]
[1646920840098,0.72242536,2574.7,2574.6,1.4428507]
[1646920840299,0.72242536,2574.7,2574.6,0.461]
[1646920840702,4.52242536,2574.7,2574.6,0.461]
[1646920840900,4.52242536,2574.7,2574.3,0.5]
[1646920841204,4.52242536,2574.7,2574.2,0.461]
[1646920841400,4.52242536,2574.7,2574.5,1.11280284]
[1646920841601,4.52242536,2574.7,2574.6,0.461]
[1646920842099,4.52242536,2574.7,2574.6,12.575]
[1646920842299,4.52242536,2574.7,2574.6,1.645]
[1646920842499,0.11284899,2575.0,2574.7,35.5]
[1646920842745,0.11284899,2575.0,2574.8,0.461]
[1646920842950,0.11284899,2575.0,2574.9,0.384]
[1646920843151,0.11284899,2575.0,2574.9,0.845]
[1646920844051,0.11284899,2575.0,2574.9,1.84239288]
[1646920844854,0.11284899,2575.0,2574.9,1.45839288]
[1646920847697,0.11284899,2575.0,2574.9,0.461]
[1646920847902,0.26818457,2575.3,2574.9,0.461]
[1646920848103,0.26818457,2575.3,2574.9,1.43233]
[1646920849203,0.26818457,2575.3,2575.0,1.94251]
[1646920849405,0.97801954,2575.2,2574.9,0.97133]
[1646920849605,0.97801954,2575.2,2574.7,0.5]
[1646920849802,0.97801954,2575.2,2574.6,1.94286]
[1646920850003,0.97801954,2575.2,2574.7,1.10249332]
[1646920850263,0.26818457,2575.3,2574.8,0.08466835]
[1646920850446,0.26818457,2575.3,2574.9,1.94267]
[1646920850643,0.26818457,2575.3,2574.9,2.40367]
[1646920850846,0.26818457,2575.3,2575.0,0.08759968]
[1646920851045,0.26818457,2575.3,2575.1,0.461]
[1646920851046,0.4,2575.2,2575.1,0.461]
[1646920851244,0.4,2575.2,2575.1,1.6202605]
[1646920852449,0.4,2575.2,2575.1,0.461]
[1646920852647,0.4,2575.2,2575.0,0.97117]
[1646920853051,0.4,2575.2,2574.6,1.94293]
[1646920853252,0.04365275,2575.1,2574.6,1.94293]
[1646920853450,0.4,2575.2,2574.6,1.94293]
[1646920853654,0.4,2575.2,2574.7,1.04064666]
[1646920854097,0.4,2575.2,2574.9,0.06988572]
[1646920854300,0.4,2575.2,2574.9,1.50206032]
[1646920854496,0.4,2575.2,2575.0,1.94248]
[1646920854697,0.4,2575.2,2575.1,0.53815116]
[1646920854896,0.4,2575.2,2575.1,1.71639672]
[1646920855097,0.4,2575.2,2575.1,0.53815116]
[1646920855297,0.4,2575.2,2575.1,0.83815116]
[1646920855496,0.4,2575.2,2575.1,0.53815116]
[1646920855900,0.4,2575.2,2575.1,2.00938116]
[1646920856101,0.4,2575.2,2575.1,2.99369481]
[1646920857102,0.4,2575.2,2575.1,3.21654365]
[1646920857501,0.4,2575.2,2575.1,4.18759445]
[1646920857942,0.4,2575.2,2575.1,3.21654365]
[1646920858143,0.4,2575.2,2575.1,2.91654365]
[1646920858446,0.4,2575.2,2574.9,0.97116]
[1646920858447,0.784,2575.2,2574.9,0.97116]
[1646920859645,0.4,2575.2,2575.0,0.97122]
[1646920859845,0.4,2575.2,2575.1,0.461]
[1646920861348,0.21737114,2575.0,2574.9,0.97116]
[1646920863196,0.21737114,2575.0,2574.6,1.94279]
[1646920863397,0.60137114,2575.0,2574.6,1.94279]
[1646920863595,1.14011074,2574.8,2574.6,1.94279]
[1646920863795,0.05335111,2574.9,2574.6,1.94279]
[1646920865247,1.20479503,2574.9,2574.6,1.94279]
[1646920866339,0.21737114,2575.0,2574.7,0.97135]
[1646920866541,0.21737114,2575.0,2574.7,1.94264]
[1646920867439,0.21737114,2575.0,2574.7,2.88451471]
[1646920867850,0.27173032,2575.0,2574.7,1.94264]
[1646920868448,0.27173032,2575.0,2574.7,0.97129]
[1646920869494,0.21737114,2575.0,2574.7,0.97129]
[1646920869695,0.21737114,2575.0,2574.7,1.43229]
[1646920869898,0.36737114,2575.2,2574.7,1.43229]
[1646920870096,0.36737114,2575.2,2574.9,1.94231]
[1646920870297,0.36737114,2575.2,2575.0,0.96578042]
[1646920870499,0.4732752,2575.6,2575.2,31.5]
[1646920870700,0.194,2576.3,2575.3,35.07332818]
[1646920870701,0.23554044,2576.3,2575.3,35.07332818]
[1646920870900,0.11284899,2575.8,2575.4,30.0360889]
[1646920871197,0.97076,2576.6,2575.6,0.384]
[1646920871398,1.6109519,2576.5,2575.8,12.114]
[1646920871703,1.19423176,2577.1,2575.9,14.60515891]
[1646920871704,0.194,2577.1,2575.9,14.60515891]
[1646920871900,1.61080894,2577.0,2576.1,12.19774591]
[1646920872100,1.61080894,2576.9,2576.8,0.97054]
[1646920872302,0.194,2577.6,2576.8,0.711]
[1646920872503,0.73880653,2577.9,2577.2,2.16820864]
[1646920872504,2.58086019,2577.5,2577.2,2.16820864]
[1646920872760,0.1938,2577.9,2577.3,0.53053928]
[1646920872953,2.06035932,2578.4,2577.4,0.08663278]
[1646920872954,0.69132366,2578.1,2577.4,0.08663278]
[1646920873152,0.1938,2578.3,2578.1,0.97002]
[1646920873353,0.04806726,2578.5,2578.0,1.94003]
[1646920873354,0.69132366,2578.5,2578.0,1.94003]
[1646920873652,1.77665811,2578.5,2578.1,0.461]
[1646920874053,0.04688495,2578.3,2577.6,0.461]
[1646920874653,0.93385939,2577.9,2577.5,0.16487069]
[1646920874852,0.05257745,2577.8,2577.5,0.62587069]
[1646920875059,1.01606704,2577.8,2577.5,0.62587069]
[1646920875452,1.01606704,2577.8,2577.5,0.461]
[1646920876253,2.32476,2578.1,2577.5,1.4313]
[1646920876491,0.00347063,2577.8,2577.5,1.4313]
[1646920876691,0.00347063,2577.8,2577.5,2.40157]
[1646920877291,0.04449696,2577.9,2577.5,2.40157]
[1646920877696,0.00347063,2577.8,2577.5,2.40157]
[1646920878497,0.04553803,2578.1,2577.5,2.40157]
[1646920878699,0.04553803,2578.1,2577.8,1.16616953]
[1646920878897,0.01159377,2578.2,2577.8,1.16616953]
[1646920879498,0.01159377,2578.2,2577.9,0.54369858]
[1646920879696,1.00095707,2578.6,2578.0,0.06876606]
[1646920879900,0.11590435,2578.8,2578.3,0.97]
[1646920880103,0.01364116,2578.5,2578.4,0.461]
[1646920880750,0.01364116,2578.5,2578.4,0.53353368]
[1646920880945,0.96978,2579.3,2578.4,0.53353368]
[1646920881147,0.96978,2579.3,2578.7,0.56978]
[1646920881349,0.384,2579.5,2579.0,1.05199434]
[1646920881350,17.5,2579.5,2579.0,1.05199434]
[1646920881548,0.05802919,2579.7,2578.4,1.461]
[1646920881746,1.01968715,2579.9,2579.3,0.96953]
[1646920881951,0.05634641,2579.8,2579.3,1.43053]
[1646920882554,1.1984387,2580.2,2579.5,1.16435297]
[1646920882755,0.88512366,2580.6,2579.9,0.96932]
[1646920882959,0.88512366,2580.6,2579.6,0.461]
[1646920882960,0.10321601,2580.5,2580.0,0.461]
[1646920883153,0.33958194,2579.9,2579.6,0.3746058]
[1646920883356,0.33958194,2579.9,2579.7,0.461]
[1646920883858,0.39467444,2579.9,2579.7,0.461]
[1646920884099,0.33958194,2579.9,2579.7,0.461]
[1646920884697,0.33958194,2579.9,2579.8,1.15991887]
[1646920884898,0.33958194,2579.9,2579.8,1.62091887]
[1646920886299,0.33958194,2579.9,2579.8,0.461]
[1646920887299,1.29668971,2579.9,2579.8,0.461]
[1646920887498,1.35787448,2579.9,2579.8,0.461]
[1646920887761,1.35787448,2579.9,2579.1,0.1648]
[1646920887762,66.884,2579.8,2579.1,0.1648]
[1646920887954,3.54952666,2579.7,2579.1,0.1648]
[1646920888155,0.04952666,2579.7,2578.5,0.45390451]
[1646920888352,0.04952666,2579.7,2578.7,12.114]
[1646920888556,1.14376783,2579.5,2578.9,0.866821]
[1646920888752,1.14376783,2579.5,2579.0,1.0388]
[1646920888952,0.96961,2579.5,2579.1,0.07024707]
[1646920889151,0.96961,2579.5,2579.1,1.50083707]
[1646920889350,0.96961,2579.5,2579.1,1.43059]
[1646920889552,0.96961,2579.5,2579.1,0.461]
[1646920889752,0.05367858,2579.4,2578.7,0.1648]
[1646920889955,0.396228,2579.9,2578.9,0.384]
[1646920890154,0.33958194,2579.9,2579.1,0.384]
[1646920890354,0.33958194,2579.9,2578.9,0.06608625]
[1646920890355,0.33958194,2579.9,2579.3,0.384]
[1646920890552,0.33958194,2579.9,2579.7,1.08500909]
[1646920890759,1.93918,2579.8,2579.7,1.08500909]
[1646920891354,1.93918,2579.8,2579.7,1.54600909]
[1646920891600,1.30911194,2579.9,2579.7,2.02448183]
[1646920891603,0.33958194,2579.9,2579.7,2.02448183]
[1646920891797,2.94948648,2580.4,2579.8,12.114]
[1646920891798,0.04092648,2580.4,2579.8,12.114]
[1646920891996,0.04092648,2580.4,2580.3,0.8838935]
[1646920892196,0.05154202,2581.0,2580.3,1.3448935]
[1646920892395,0.05154202,2581.0,2580.5,0.9689811]
[1646920892594,0.05154202,2581.0,2580.6,0.96905]
[1646920892595,0.04320018,2580.8,2580.6,0.96905]
[1646920892800,0.04320018,2580.8,2579.7,1.73573583]
[1646920893002,0.05154202,2581.0,2579.7,1.73573583]
[1646920893003,0.04263176,2580.7,2580.1,0.461]
[1646920893198,1.01204176,2580.7,2579.9,0.461]
[1646920893401,0.09315684,2580.6,2579.9,0.461]
[1646920893598,0.04206333,2580.6,2580.0,0.06751922]
[1646920893797,0.96941,2580.7,2580.2,0.92916792]
[1646920893798,0.04149491,2580.5,2580.2,0.92916792]
[1646920894198,2.13251,2580.8,2580.2,1.39016792]
[1646920894199,0.04092648,2580.4,2580.2,1.39016792]
[1646920894597,0.04035806,2580.3,2580.2,1.39016792]
[1646920894798,0.04035806,2580.3,2580.2,0.461]
[1646920895256,0.04035806,2580.3,2579.8,0.1937]
[1646920895257,0.04035806,2580.3,2579.8,0.461]
[1646920895845,0.04035806,2580.3,2580.2,1.17518855]
[1646920896050,0.04035806,2580.3,2580.2,1.17092125]
[1646920896450,0.04035806,2580.3,2580.2,1.93192125]
[1646920896648,0.01386774,2580.8,2580.4,0.384]
[1646920896846,0.01386774,2580.8,2580.5,1.43004]
[1646920897048,0.02772958,2580.8,2580.6,0.97890721]
[1646920897249,0.01386184,2580.8,2580.7,0.461]
[1646920897649,0.98289184,2580.8,2580.7,0.461]
[1646920897852,0.92619184,2580.8,2580.7,0.461]
[1646920898056,0.91233,2580.8,2580.3,0.45458871]
[1646920898254,0.78808394,2580.4,2579.9,0.461]
[1646920898453,0.78808394,2580.4,2579.8,0.1648]
[1646920898756,1.91885909,2580.1,2579.8,1.13423]
[1646920898996,0.78808394,2580.4,2579.8,0.96943]
[1646920899195,0.78808394,2580.4,2579.9,0.461]
[1646920899398,0.78808394,2580.4,2580.0,0.461]
[1646920899597,0.78808394,2580.4,2580.1,0.461]
[1646920899797,0.78808394,2580.4,2580.2,2.39937]
[1646920899997,0.78808394,2580.4,2580.3,0.95566437]
[1646920900197,0.78808394,2580.4,2580.3,1.41666437]
[1646920900395,0.78808394,2580.4,2580.3,1.71666437]
[1646920901000,0.78808394,2580.4,2580.3,2.68584437]
[1646920901001,0.59309513,2580.4,2580.3,2.68584437]
[1646920901402,0.00346731,2580.5,2580.4,45.78373457]
[1646920901598,1.92938379,2581.5,2581.1,1.22336847]
[1646920901797,1.53977726,2581.5,2581.1,1.22336847]
[1646920902200,1.93782,2581.6,2581.3,0.96889]
[1646920902758,1.93782,2581.6,2581.2,0.96889]
[1646920902949,0.96891,2581.5,2581.2,0.96889]
[1646920903350,0.96891,2581.5,2581.2,1.93779]
[1646920903549,0.96891,2581.5,2581.2,2.9066518]
[1646920903752,0.61359564,2581.8,2581.2,3.3676518]
[1646920903956,0.61359564,2581.8,2581.2,0.461]
[1646920903957,0.58698054,2581.8,2581.2,0.461]
[1646920904150,0.58698054,2581.8,2581.2,0.761]
[1646920904551,0.58698054,2581.8,2581.6,0.96878]
[1646920904753,0.58698054,2581.8,2581.6,2.5573481]
[1646920905353,0.58698054,2581.8,2581.6,2.8573481]
[1646920905553,0.59044595,2581.8,2581.6,2.8573481]
[1646920906054,0.00346541,2581.8,2581.6,3.0221481]
[1646920906354,0.00190653,2582.3,2582.1,0.96857]
[1646920906604,0.00190653,2582.3,2581.7,1.9371708]
[1646920906605,0.01385955,2582.2,2581.9,2.39814]
[1646920907401,0.01385955,2582.2,2582.1,0.96862]
[1646920907602,1.93731,2582.3,2582.1,0.96862]
[1646920907807,0.00346533,2582.2,2581.9,4.55797889]
[1646920908211,0.00346533,2582.2,2581.9,3.58935479]
[1646920908507,0.00346533,2582.2,2582.0,1.9370097]
[1646920908711,0.00203639,2582.7,2582.1,0.461]
[1646920908908,3.96454336,2582.8,2582.4,0.96849]
[1646920909112,0.01385922,2582.6,2582.3,1.17379535]
[1646920909308,0.01385922,2582.6,2582.2,2.9055]
[1646920909710,0.01385922,2582.6,2582.2,3.3665]
[1646920910010,0.01385922,2582.6,2582.4,0.9685]
[1646920910259,0.02169648,2582.9,2582.4,0.9685]
[1646920910260,0.00339975,2582.5,2582.4,0.9685]
[1646920910447,1.0795534,2582.5,2582.2,4.3349974]
[1646920910746,1.0795534,2582.5,2582.2,2.9055]
[1646920910946,0.00339975,2582.5,2582.2,2.9055]
[1646920911148,1.60800306,2582.8,2582.2,3.9055]
[1646920911352,0.02169648,2582.9,2582.5,0.96845]
[1646920911652,0.0352935,2582.9,2582.6,2.69764]
[1646920911846,0.0352935,2582.9,2582.8,0.91110163]
[1646920912249,0.0352935,2582.9,2582.8,1.21110163]
[1646920912547,0.02169648,2582.9,2582.8,1.21110163]
[1646920913252,0.02169648,2582.9,2582.8,0.461]
[1646920913853,0.02169648,2582.9,2582.8,1.38533271]
[1646920915302,0.02169648,2582.9,2582.8,1.68533271]
[1646920915500,0.01149157,2583.4,2582.8,1.68533271]
[1646920915703,0.01149157,2583.4,2583.2,0.96795]
[1646920915903,0.02214839,2583.8,2583.3,1.42902]
[1646920916105,0.020112,2583.8,2583.3,1.5607]
[1646920916303,0.020112,2583.8,2583.4,1.03938633]
[1646920916504,0.020112,2583.8,2583.5,0.461]
[1646920916703,0.020112,2583.8,2583.5,0.761]
[1646920916907,0.020112,2583.8,2583.5,1.72896]
[1646920917304,0.020112,2583.8,2583.5,1.42896]
[1646920917504,0.00346842,2583.7,2583.5,1.42896]
[1646920917757,1.09703583,2583.7,2583.5,1.42896]
[1646920918354,0.05245729,2583.6,2583.5,1.42896]
[1646920918753,0.05245729,2583.6,2583.4,1.93592]
[1646920918954,0.43645729,2583.6,2582.8,1.93647]
[1646920919155,0.43645729,2583.6,2582.6,0.5]
[1646920919156,13.33741366,2583.5,2582.6,0.5]
[1646920919354,0.06484689,2583.6,2582.6,0.5]
[1646920919355,0.05813877,2583.2,2582.6,0.5]
[1646920919560,0.25163877,2583.2,2581.8,21.42537425]
[1646920919755,0.25163877,2583.2,2582.4,0.5]
[1646920919756,1.60760918,2583.1,2582.4,0.5]
[1646920919954,0.06219059,2583.0,2582.4,0.5]
[1646920920158,0.0587813,2583.4,2582.6,1.99507869]
[1646920920352,0.0587813,2583.4,2582.6,1.99496929]
[1646920920751,0.0587813,2583.4,2582.6,1.02664869]
[1646920920752,3.54426604,2583.3,2582.6,1.02664869]
[1646920920954,3.54426604,2583.3,2582.6,1.93665]
[1646920920955,0.05400265,2583.1,2582.6,1.93665]
[1646920921352,0.05400265,2583.1,2582.3,0.461]
[1646920921597,0.384,2583.2,2582.2,0.52222469]
[1646920921800,0.384,2583.2,2582.2,0.22222469]
[1646920921999,0.384,2583.2,2582.0,1.93713]
[1646920922000,0.96864,2582.6,2582.0,1.93713]
[1646920922204,1.99159743,2583.1,2582.0,1.93713]
[1646920922205,0.00545954,2583.1,2582.0,1.93713]
[1646920922397,0.00545954,2583.1,2582.5,0.96847]
[1646920922398,1.60774073,2583.0,2582.5,0.96847]
[1646920922596,0.00342315,2583.1,2581.9,2.8302349]
[1646920922803,0.00342315,2583.1,2581.9,2.3302349]
[1646920922804,1.61321874,2583.1,2581.9,2.3302349]
[1646920923002,1.61321874,2583.1,2582.4,1.2346967]
[1646920923003,1.23090589,2583.0,2582.4,1.2346967]
[1646920923201,1.23090589,2583.0,2582.2,1.93691]
[1646920923401,1.61490589,2583.0,2582.2,1.93691]
[1646920923603,1.61490589,2583.0,2581.9,0.4]
[1646920923604,1.62859822,2583.0,2581.9,0.4]
[1646920923802,0.384,2582.8,2581.9,0.4]
[1646920924000,0.384,2582.8,2582.1,0.96859]
[1646920924201,0.90516622,2582.3,2581.9,0.4]
[1646920924602,1.93734,2582.4,2581.9,0.4]
[1646920924807,0.01369246,2582.9,2581.9,1.084]
[1646920925004,0.01369246,2582.9,2582.6,0.96839]
[1646920925258,0.01369246,2582.9,2582.5,0.461]
[1646920925448,0.01369246,2582.9,2582.6,0.461]
[1646920925648,0.00203639,2583.3,2582.7,1.61515236]
[1646920925649,1.93668,2583.0,2582.7,1.61515236]
[1646920925848,0.00286572,2583.1,2582.7,1.61515236]
[1646920926050,0.00286572,2583.1,2583.0,0.96824]
[1646920926250,0.00286572,2583.1,2583.0,1.42924]
[1646920926749,1.93939856,2583.6,2583.1,12.114]
[1646920926950,1.93939856,2583.6,2583.5,0.9681]
[1646920926951,0.01645891,2583.6,2583.5,0.9681]
[1646920927752,0.01645891,2583.6,2583.2,1.93619]
[1646920927954,0.00309856,2583.6,2583.2,1.93619]
[1646920928155,0.00309856,2583.6,2582.9,1.93649]
[1646920928156,1.61047876,2583.6,2582.9,1.93649]
[1646920928756,1.12204079,2583.5,2582.9,3.07226225]
[1646920929003,2.5757402,2583.4,2582.9,1.93649]
[1646920929203,1.12204079,2583.5,2582.9,1.93649]
[1646920929403,0.00334056,2583.3,2582.9,1.93649]
[1646920929603,0.00334056,2583.3,2582.7,0.5]
[1646920929604,0.06145683,2583.3,2582.7,0.5]
[1646920929804,0.06145683,2583.3,2582.8,0.9684]
[1646920930404,0.05811627,2583.3,2582.8,0.9684]
[1646920930604,0.00335924,2583.2,2582.8,0.9684]
[1646920931604,0.05811627,2583.3,2582.8,0.9684]
[1646920931806,0.00335925,2583.1,2582.8,0.9684]
[1646920932006,0.00335925,2583.1,2582.9,1.12072675]
[1646920932206,0.00335925,2583.1,2583.0,0.96825]
[1646920932854,0.96835,2583.4,2583.0,0.96825]
[1646920933055,0.96835,2583.4,2582.8,2.33649]
[1646920933056,0.00335924,2583.2,2582.8,2.33649]
[1646920933254,0.00335924,2583.2,2583.0,0.96829]
[1646920933653,0.00335924,2583.2,2582.8,2.33649]
[1646920934052,1.60737909,2583.3,2582.8,2.33649]
[1646920934455,0.00335503,2583.2,2582.8,2.33649]
[1646920935052,1.61079271,2583.2,2582.8,2.33649]
[1646920935259,1.60743768,2583.2,2582.8,2.33649]
[1646920935653,0.00335505,2583.1,2582.8,2.33649]
[1646920936156,0.06119868,2583.1,2582.8,2.33649]
[1646920936354,0.05784363,2583.1,2582.8,2.33649]
[1646920936797,0.06119863,2583.1,2582.8,2.33649]
[1646920937398,0.06119863,2583.1,2582.8,0.4]
[1646920937599,0.05784363,2583.1,2582.8,1.36836]
[1646920938004,1.60747578,2583.0,2582.8,2.32534772]
[1646920938204,0.00325697,2583.1,2582.8,1.35698772]
[1646920938603,0.00325697,2583.1,2582.8,2.32527772]
[1646920938804,1.60740778,2583.2,2582.8,1.36829]
[1646920939006,0.05599576,2583.1,2582.8,0.4]
[1646920939205,1.60740345,2583.0,2582.8,0.4]
[1646920939404,0.00276692,2583.1,2582.8,0.4]
[1646920939605,0.00276692,2583.1,2582.9,1.0]
[1646920940006,0.04825645,2583.1,2582.8,0.4]
[1646920940256,1.60740235,2583.0,2582.8,0.4]
[1646920940450,1.60740235,2583.0,2582.8,1.36831]
[1646920941049,0.06240869,2582.9,2582.8,1.36831]
[1646920941250,1.66573008,2582.9,2582.8,1.36831]
[1646920941447,0.00347017,2583.1,2582.6,4.3732836]
[1646920941647,1.61362327,2583.3,2582.8,0.96827]
[1646920941849,1.60735646,2583.2,2582.8,0.96827]
[1646920942351,1.60735646,2583.2,2582.8,0.96834]
[1646920942553,1.63965864,2583.1,2582.6,0.1536]
[1646920942752,1.60735646,2583.0,2582.6,0.1536]
[1646920942959,0.04779868,2582.9,2582.6,0.1536]
[1646920943157,1.16196,2583.2,2582.6,0.1536]
[1646920943158,1.60735646,2582.8,2582.6,0.1536]
[1646920943356,0.05421167,2583.2,2583.0,0.96826]
[1646920943558,1.60728606,2583.1,2582.6,1.12508321]
[1646920943997,1.60728606,2583.1,2582.6,3.06168321]
[1646920944198,0.04520707,2583.0,2582.6,2.0902]
[1646920944401,0.04520707,2583.0,2582.6,0.1536]
[1646920944402,1.60728606,2582.9,2582.6,0.1536]
[1646920944599,0.04520707,2583.0,2582.6,0.1536]
[1646920944600,0.04674287,2582.8,2582.6,0.1536]
[1646920944798,1.65446304,2582.7,2582.6,0.1536]
[1646920945603,1.60728606,2582.7,2582.6,0.1536]
[1646920946199,1.60728606,2582.9,2582.6,0.1536]
[1646920946399,1.60728606,2582.9,2582.6,1.31539]
[1646920946599,1.60728606,2582.9,2582.8,0.9683]
[1646920947002,1.61075582,2583.2,2582.8,1.2489726]
[1646920947203,1.60728606,2583.2,2582.8,0.761]
[1646920947399,1.60728606,2583.2,2582.8,0.461]
[1646920947602,1.61075604,2583.2,2582.8,0.461]
[1646920948063,1.61075604,2583.2,2582.9,1.16163]
[1646920948265,1.61075604,2583.2,2583.1,0.9682]
[1646920948462,1.60728606,2583.2,2583.1,0.9682]
[1646920948661,1.60728606,2583.2,2583.1,1.4292]
[1646920948860,1.6107562,2583.2,2583.1,1.4292]
[1646920949663,1.60728606,2583.2,2583.1,1.4292]
[1646920950466,1.60728606,2583.2,2582.9,1.93639]
[1646920950665,1.60728606,2583.1,2582.7,0.07938139]